bitfinex-derivatives/quotes_BTCF0:USTF0_20210111
["timestamp","ask_amount","ask_price","bid_price","bid_amount"]
[1610394854731,0.80835373,32496.0,32467.0,5.0488]
[1610394855132,0.80705283,32493.0,32467.0,5.0488]
[1610394855533,0.80578056,32494.0,32467.0,5.0488]
[1610394856334,0.80582621,32495.0,32476.0,4.3831]
[1610394856533,0.80582621,32495.0,32494.0,0.13632608]
[1610394856734,0.80463471,32499.0,32494.0,0.13632608]
[1610394857135,0.80456293,32501.0,32490.0,0.09509]
[1610394857535,0.80457187,32499.0,32490.0,0.09509]
[1610394857939,0.80357737,32501.0,32490.0,0.09509]
[1610394858137,0.80357737,32501.0,32490.0,0.09321417]
[1610394858437,0.80353494,32502.0,32490.0,0.09321417]
[1610394858636,0.80353494,32502.0,32500.0,0.13632608]
[1610394858838,0.80258533,32504.0,32500.0,0.04253486]
[1610394859037,0.80253024,32507.0,32500.0,0.04253486]
[1610394859239,0.80253024,32507.0,32490.0,0.09321417]
[1610394859437,0.80159899,32508.0,32492.0,4.2005]
[1610394859636,0.80159899,32508.0,32490.0,0.09321417]
[1610394859836,0.80153189,32511.0,32494.0,4.6171]
[1610394860639,0.90940913,32518.0,32510.0,0.13632608]
[1610394861037,0.67505666,32519.0,32510.0,0.13632608]
[1610394861638,0.90800454,32524.0,32510.0,0.13632608]
[1610394862239,0.90800454,32524.0,32504.0,0.10571]
[1610394862440,0.9079911,32522.0,32504.0,0.10571]
[1610394862640,0.13632608,32505.0,32490.0,0.09321417]
[1610394863040,0.13632608,32505.0,32484.0,4.8552]
[1610394864641,4.4218,32517.0,32484.0,4.8552]
[1610394865043,0.67518576,32516.0,32484.0,4.93498]
[1610394865443,4.4218,32517.0,32484.0,4.93498]
[1610394866645,4.4218,32517.0,32489.0,0.13632608]
[1610394866846,4.4218,32517.0,32484.0,4.8552]
[1610394867046,0.08659,32518.0,32476.0,0.07759]
[1610394867246,4.91,32510.0,32476.0,0.07759]
[1610394867446,4.91,32510.0,32468.0,3.6069]
[1610394867846,0.67538166,32509.0,32468.0,3.6069]
[1610394868046,0.52030975,32509.0,32468.0,3.6069]
[1610394868247,0.90390249,32508.0,32468.0,3.6069]
[1610394868448,0.90390249,32508.0,32419.0,0.2723]
[1610394868648,0.13632608,32472.0,32453.0,0.13632608]
[1610394869048,0.13632608,32472.0,32435.0,3.9193]
[1610394869247,1.13632608,32472.0,32393.0,0.5503]
[1610394869649,3.856,32465.0,32400.0,3.585]
[1610394870249,3.62153687,32465.0,32400.0,3.585]
[1610394870649,0.13632608,32454.0,32447.0,0.13632608]
[1610394871849,0.13632608,32454.0,32427.0,4.1752]
[1610394872653,4.0101,32462.0,32449.0,0.13632608]
[1610394873254,0.5713,32471.0,32449.0,0.13632608]
[1610394873454,0.5713,32471.0,32442.0,0.10278]
[1610394874554,4.8842,32480.0,32468.0,0.13632608]
[1610394874754,0.90499401,32490.0,32468.0,0.13632608]
[1610394874954,1.01585464,32493.0,32468.0,0.13444911]
[1610394875153,0.90496464,32493.0,32468.0,0.0719]
[1610394875356,0.2844,32494.0,32468.0,0.0719]
[1610394875555,0.0914,32498.0,32468.0,0.0719]
[1610394875756,5.1569,32486.0,32468.0,0.0719]
[1610394876157,5.1569,32486.0,32450.0,0.10886]
[1610394876656,5.1569,32486.0,32462.0,0.13632608]
[1610394877256,0.092,32485.0,32462.0,0.13632608]
[1610394877457,0.092,32485.0,32450.0,0.10886]
[1610394877656,5.1569,32486.0,32450.0,0.10886]
[1610394878659,5.1569,32486.0,32467.0,0.13632608]
[1610394879057,5.1569,32486.0,32460.0,0.08039]
[1610394879658,0.0934,32485.0,32460.0,0.08039]
[1610394880060,4.0019,32471.0,32450.0,0.10886]
[1610394880259,4.0019,32471.0,32442.0,0.10278]
[1610394880461,4.0019,32471.0,32436.0,3.546]
[1610394880661,0.13632608,32447.0,32437.0,0.13632608]
[1610394881060,4.0019,32471.0,32437.0,0.13632608]
[1610394881263,4.0019,32471.0,32437.0,0.10546]
[1610394882663,4.0019,32471.0,32465.0,0.13632608]
[1610394882863,0.0915,32470.0,32465.0,0.21412608]
[1610394883264,0.0915,32470.0,32465.0,0.0778]
[1610394883663,0.0915,32470.0,32437.0,0.10546]
[1610394884262,0.0915,32470.0,32437.0,0.06116]
[1610394884663,0.0915,32470.0,32437.0,0.19748608]
[1610394884865,0.80136546,32468.0,32437.0,0.19748608]
[1610394885066,0.80146348,32465.0,32437.0,0.19748608]
[1610394885467,0.80213734,32462.0,32437.0,0.19748608]
[1610394886268,0.80213734,32462.0,32437.0,0.06116]
[1610394886471,0.80211372,32463.0,32428.0,4.3545]
[1610394886668,0.0936,32462.0,32431.0,0.13632608]
[1610394886868,0.80287176,32460.0,32431.0,0.13632608]
[1610394887067,0.43907795,32460.0,32431.0,0.13632608]
[1610394887267,0.0936,32462.0,32431.0,0.13632608]
[1610394887569,0.91307503,32461.0,32431.0,0.13632608]
[1610394887969,0.0936,32462.0,32431.0,0.13632608]
[1610394887970,0.91309565,32459.0,32431.0,0.13632608]
[1610394888171,0.0936,32458.0,32431.0,0.13632608]
[1610394888773,0.0936,32458.0,32442.0,0.13632608]
[1610394890272,1.00788976,32462.0,32442.0,0.13632608]
[1610394890473,0.91428976,32462.0,32436.0,0.10685]
[1610394890675,0.91492262,32459.0,32439.0,0.13632608]
[1610394891780,0.91562568,32461.0,32439.0,0.13632608]
[1610394891981,0.91562568,32461.0,32440.0,0.5889]
[1610394892178,0.91562568,32461.0,32439.0,0.13632608]
[1610394892379,1.0,32464.0,32441.0,4.1932]
[1610394892779,1.0,32464.0,32463.0,0.13632608]
[1610394893179,0.91607014,32477.0,32463.0,0.13632608]
[1610394893579,0.91661396,32478.0,32463.0,0.13444879]
[1610394893779,0.91660327,32477.0,32463.0,0.13444879]
[1610394893980,0.91660327,32477.0,32456.0,0.07796]
[1610394894181,0.91663926,32476.0,32456.0,0.07796]
[1610394894580,0.91713427,32471.0,32456.0,0.07796]
[1610394894779,0.91713427,32471.0,32470.0,0.13632608]
[1610394894980,0.91713956,32473.0,32470.0,0.13632608]
[1610394895381,0.91713956,32473.0,32470.0,0.04245416]
[1610394895881,0.91767045,32472.0,32470.0,0.04245416]
[1610394896282,0.91769121,32473.0,32456.0,0.07796]
[1610394897082,0.13632608,32464.0,32456.0,0.07796]
[1610394897286,0.13632608,32464.0,32455.0,4.0713]
[1610394899186,0.13632608,32456.0,32455.0,4.0713]
[1610394899386,0.13632608,32456.0,32451.0,0.13632608]
[1610394899588,0.13632608,32456.0,32436.0,0.10685]
[1610394899786,0.13632608,32456.0,32427.0,4.071]
[1610394901186,0.13632608,32449.0,32446.0,0.13632608]
[1610394901386,0.92143863,32458.0,32427.0,4.071]
[1610394901586,0.92143863,32458.0,32427.0,4.17972]
[1610394902588,0.92284176,32457.0,32427.0,4.17972]
[1610394903189,0.92284176,32457.0,32449.0,0.13632608]
[1610394903791,0.68935194,32455.0,32449.0,0.13632608]
[1610394904092,1.29292987,32465.0,32449.0,0.13632608]
[1610394904093,1.03436233,32461.0,32449.0,0.13632608]
[1610394904892,0.74746767,32461.0,32445.0,0.07578]
[1610394905292,0.74746767,32461.0,32452.0,0.13632608]
[1610394905693,0.74746767,32461.0,32452.0,0.13444815]
[1610394905894,0.74746767,32461.0,32445.0,0.07578]
[1610394906095,0.67600184,32468.0,32445.0,0.07578]
[1610394906096,1.29384032,32465.0,32445.0,0.07578]
[1610394906495,1.2938859,32464.0,32445.0,0.07578]
[1610394907397,1.2938859,32464.0,32452.0,0.13632608]
[1610394907698,1.29393728,32465.0,32452.0,0.13632608]
[1610394907898,0.0931,32464.0,32452.0,0.13632608]
[1610394908098,1.29393728,32465.0,32452.0,0.13632608]
[1610394908400,1.29393728,32465.0,32445.0,0.07578]
[1610394908600,1.29398641,32466.0,32427.0,4.17972]
[1610394908899,1.29400461,32465.0,32427.0,4.17972]
[1610394909601,1.29400461,32465.0,32448.0,0.13632608]
[1610394909801,1.29400461,32465.0,32442.0,0.10332]
[1610394910003,1.29411142,32464.0,32442.0,0.10332]
[1610394910303,1.29410118,32463.0,32442.0,0.10332]
[1610394910804,1.29419639,32464.0,32442.0,0.10332]
[1610394911204,1.29424745,32462.0,32442.0,0.10332]
[1610394911707,1.29412182,32463.0,32445.0,0.13632608]
[1610394912306,1.29412182,32463.0,32442.0,0.10332]
[1610394912909,1.29408974,32460.0,32442.0,0.10332]
[1610394913109,1.29418968,32456.0,32442.0,0.10332]
[1610394913308,1.0,32450.0,32427.0,0.10872]
[1610394913509,1.0,32450.0,32420.0,4.4118]
[1610394913707,0.13632608,32421.0,32420.0,4.54812608]
[1610394913908,0.13632608,32421.0,32420.0,0.13632608]
[1610394914309,3.9752,32421.0,32394.0,4.6114]
[1610394914512,1.29446731,32445.0,32370.0,0.2794]
[1610394914708,5.1565,32414.0,32370.0,3.62903]
[1610394915509,1.0,32422.0,32370.0,0.10153]
[1610394915708,1.0,32422.0,32381.0,3.8675]
[1610394915911,1.03558635,32421.0,32381.0,3.9508]
[1610394916110,1.03558635,32421.0,32381.0,0.0833]
[1610394916310,3.8527,32414.0,32381.0,0.0833]
[1610394916709,1.03574479,32418.0,32381.0,0.0833]
[1610394916910,0.67713948,32413.0,32381.0,0.0833]
[1610394917311,1.0,32388.0,32381.0,0.0833]
[1610394917513,5.1567,32382.0,32381.0,0.0833]
[1610394917711,5.1567,32382.0,32370.0,0.10153]
[1610394917712,5.29302608,32382.0,32370.0,0.10153]
[1610394918112,0.13632608,32382.0,32370.0,0.10153]
[1610394918512,4.8721,32372.0,32344.0,4.9991]
[1610394919715,0.13632608,32345.0,32344.0,4.9991]
[1610394919912,0.13632608,32345.0,32337.0,0.13632608]
[1610394921712,0.13632608,32338.0,32337.0,0.13632608]
[1610394922112,5.0705,32363.0,32327.0,5.0585]
[1610394922314,5.0705,32363.0,32327.0,5.15474]
[1610394923113,0.282,32378.0,32327.0,0.09624]
[1610394923315,1.81515605,32384.0,32338.0,4.0144]
[1610394923512,0.2833,32383.0,32338.0,4.10713]
[1610394923915,4.57733971,32390.0,32338.0,4.10713]
[1610394924114,3.7709,32390.0,32338.0,4.10713]
[1610394925514,3.863,32390.0,32338.0,4.10713]
[1610394925915,3.863,32390.0,32352.0,0.13632608]
[1610394926116,3.863,32390.0,32352.0,0.21394608]
[1610394926716,3.7709,32390.0,32352.0,0.21394608]
[1610394927317,3.7709,32390.0,32352.0,0.07762]
[1610394927519,0.80544074,32392.0,32352.0,0.07762]
[1610394927917,4.2259,32353.0,32352.0,0.00042]
[1610394928117,4.45612608,32353.0,32338.0,0.03635]
[1610394928519,4.45612608,32353.0,32327.0,0.09624]
[1610394928718,0.23022608,32353.0,32278.0,1.77713138]
[1610394928919,3.8072,32339.0,32274.0,4.83]
[1610394929120,3.9006,32339.0,32274.0,4.83]
[1610394930123,3.9006,32339.0,32294.0,0.13632608]
[1610394930320,3.9006,32339.0,32294.0,0.24593608]
[1610394931121,3.9006,32339.0,32294.0,0.10961]
[1610394931322,1.0,32316.0,32294.0,0.10961]
[1610394931523,3.8831,32307.0,32294.0,0.10961]
[1610394932321,0.13632608,32295.0,32294.0,0.10961]
[1610394932725,3.61698651,32307.0,32294.0,0.10961]
[1610394934123,3.5134552,32307.0,32294.0,0.10961]
[1610394934323,0.7973337,32345.0,32294.0,0.10961]
[1610394934522,5.1937,32329.0,32294.0,0.10961]
[1610394935124,0.13632608,32317.0,32300.0,0.13632608]
[1610394935326,0.13632608,32317.0,32294.0,0.10961]
[1610394935524,1.2861,32328.0,32294.0,0.10961]
[1610394935724,1.2861,32328.0,32294.0,0.11036]
[1610394936125,1.0,32328.0,32294.0,0.11036]
[1610394936525,1.0,32328.0,32298.0,4.0767]
[1610394937325,0.2895,32343.0,32298.0,4.0767]
[1610394937727,0.9046,32343.0,32298.0,4.0767]
[1610394937926,0.6151,32343.0,32298.0,4.0767]
[1610394938326,0.6151,32343.0,32308.0,0.13632608]
[1610394938527,0.6151,32343.0,32308.0,0.0986]
[1610394940830,0.3895189,32343.0,32308.0,0.0986]
[1610394941030,0.3895189,32343.0,32320.0,0.13632608]
[1610394941231,0.3895189,32343.0,32320.0,0.06907]
[1610394942131,0.094,32345.0,32320.0,0.06907]
[1610394942333,4.5774,32329.0,32320.0,0.06907]
[1610394942935,4.5774,32329.0,32308.0,0.0986]
[1610394942936,0.13632608,32321.0,32308.0,0.0986]
[1610394943334,1.13632608,32321.0,32308.0,0.0986]
[1610394943733,1.13632608,32321.0,32294.0,5.31306]
[1610394944335,1.0,32321.0,32294.0,0.11036]
[1610394944534,1.0,32321.0,32297.0,3.8173]
[1610394944734,1.0,32321.0,32297.0,3.91331]
[1610394945334,0.0934,32329.0,32297.0,3.91331]
[1610394945934,0.0928,32333.0,32301.0,0.13632608]
[1610394946134,0.0937,32337.0,32301.0,0.13632608]
[1610394946335,0.03,32310.0,32301.0,0.13632608]
[1610394947136,0.03,32310.0,32301.0,0.11632608]
[1610394947337,0.03,32310.0,32297.0,3.91331]
[1610394947937,0.03,32310.0,32309.0,0.13632608]
[1610394948140,0.13632608,32326.0,32309.0,0.21792608]
[1610394948338,1.0,32339.0,32309.0,0.20792608]
[1610394949138,4.5615,32345.0,32309.0,0.20792608]
[1610394949537,4.6552,32345.0,32309.0,0.20792608]
[1610394949840,4.6552,32345.0,32321.0,0.13632608]
[1610394949841,4.5615,32345.0,32321.0,0.13632608]
[1610394950037,4.5615,32345.0,32321.0,0.23157608]
[1610394950641,4.5615,32345.0,32321.0,0.09525]
[1610394950840,4.6535,32345.0,32321.0,0.09525]
[1610394951942,0.13632608,32322.0,32321.0,0.09525]
[1610394953845,0.13632608,32322.0,32321.0,0.08525]
[1610394954245,0.13632608,32322.0,32316.0,0.13632608]
[1610394954645,0.13632608,32322.0,32309.0,0.0816]
[1610394954844,0.0922,32340.0,32305.0,4.2739]
[1610394955044,0.0922,32340.0,32305.0,4.35846]
[1610394955749,4.5615,32345.0,32305.0,4.35846]
[1610394956448,4.5615,32345.0,32332.0,0.13632608]
[1610394956648,0.07912691,32353.0,32332.0,0.23931608]
[1610394956847,0.0923,32352.0,32332.0,0.23931608]
[1610394957850,0.0923,32352.0,32332.0,0.10299]
[1610394958450,0.13632608,32333.0,32332.0,0.10299]
[1610394959450,0.13632608,32333.0,32312.0,4.3935]
[1610394960450,0.13632608,32313.0,32312.0,4.3935]
[1610394960652,0.13632608,32313.0,32309.0,0.13632608]
[1610394961053,3.8763,32331.0,32309.0,0.13632608]
[1610394961252,1.0,32346.0,32309.0,0.13632608]
[1610394961452,1.0,32346.0,32307.0,3.6293]
[1610394962452,0.13632608,32322.0,32320.0,0.13632608]
[1610394963654,0.13632608,32322.0,32305.0,0.08456]
[1610394963856,0.13632608,32322.0,32304.0,4.8446]
[1610394964058,0.13632608,32322.0,32301.0,0.38691089]
[1610394964255,0.13632608,32322.0,32301.0,4.16061089]
[1610394964456,0.13632608,32322.0,32321.0,0.13632608]
[1610394964657,0.13632608,32322.0,32321.0,0.21848608]
[1610394966457,0.13632608,32322.0,32321.0,0.08216]
[1610394969161,0.13632608,32322.0,32314.0,0.07611]
[1610394970462,0.13632608,32315.0,32314.0,0.07611]
[1610394971264,4.7148,32315.0,32301.0,0.38691089]
[1610394971862,5.0,32331.0,32301.0,0.38691089]
[1610394972063,4.0274,32303.0,32301.0,0.38691089]
[1610394972462,0.0921,32315.0,32301.0,0.38691089]
[1610394972664,0.13632608,32302.0,32301.0,0.38691089]
[1610394972865,0.8073579,32318.0,32301.0,0.38691089]
[1610394973067,0.80735014,32320.0,32301.0,0.38691089]
[1610394973470,0.80915188,32318.0,32301.0,0.28801089]
[1610394973766,0.0921,32317.0,32301.0,0.28801089]
[1610394973966,0.901245,32317.0,32301.0,0.28801089]
[1610394974164,4.475,32309.0,32301.0,0.28801089]
[1610394974565,0.13632608,32302.0,32301.0,0.28801089]
[1610394974765,0.81382608,32302.0,32301.0,0.28801089]
[1610394975165,0.81382608,32302.0,32301.0,0.28612456]
[1610394975368,0.13632608,32302.0,32301.0,0.28612456]
[1610394976171,0.84012608,32302.0,32301.0,0.28612456]
[1610394976373,0.93192608,32302.0,32301.0,0.28612456]
[1610394976573,0.84012608,32302.0,32301.0,0.28612456]
[1610394977573,1.65362625,32302.0,32301.0,0.28612456]
[1610394978274,1.65362625,32302.0,32301.0,0.05542456]
[1610394978877,2.57857366,32302.0,32263.0,3.5688]
[1610394979477,0.81406709,32297.0,32263.0,3.5688]
[1610394980179,0.81404007,32296.0,32276.0,0.03]
[1610394980581,0.79484007,32296.0,32276.0,0.03]
[1610394980781,0.13632608,32277.0,32276.0,0.03]
[1610394981181,4.50662608,32277.0,32276.0,0.03]
[1610394983582,0.13632608,32277.0,32276.0,0.03]
[1610394983985,1.0,32288.0,32276.0,0.5373]
[1610394984183,1.0,32288.0,32276.0,0.11221]
[1610394984383,1.0,32288.0,32278.0,4.4344]
[1610394984784,1.13632608,32288.0,32282.0,0.13632608]
[1610394984984,1.13632608,32288.0,32278.0,4.4344]
[1610394985184,0.13632608,32288.0,32278.0,4.4344]
[1610394986093,0.13632608,32288.0,32276.0,0.11221]
[1610394986687,0.13632608,32277.0,32276.0,0.11221]
[1610394986988,0.03392725,32277.0,32276.0,0.11221]
[1610394988593,1.0,32300.0,32276.0,0.11221]
[1610394988792,1.0,32300.0,32284.0,0.13632608]
[1610394988995,1.0,32300.0,32284.0,0.23851608]
[1610394989193,0.92927662,32302.0,32284.0,0.23851608]
[1610394989393,0.92927662,32302.0,32284.0,0.10219]
[1610394989594,0.92921565,32301.0,32284.0,0.10219]
[1610394990595,0.92915547,32300.0,32284.0,0.10219]
[1610394990795,0.13632608,32285.0,32284.0,0.10219]
[1610394993400,0.13632608,32285.0,32276.0,0.11221]
[1610394994499,4.7666,32280.0,32276.0,0.11221]
[1610394994700,4.7666,32280.0,32276.0,0.03]
[1610394994900,4.7666,32280.0,32276.0,0.0223]
[1610394995100,0.13632608,32277.0,32276.0,0.0223]
[1610394995299,1.13632608,32277.0,32276.0,0.0223]
[1610394995901,1.13632608,32277.0,32276.0,0.0204123]
[1610394997904,4.98852608,32277.0,32276.0,0.0204123]
[1610394998104,4.8522,32277.0,32276.0,0.0204123]
[1610394998305,4.8522,32277.0,32276.0,1.23e-05]
[1610394998712,6.45886322,32277.0,32276.0,1.23e-05]
[1610394998905,6.45886322,32277.0,32246.0,4.5062]
[1610394999304,5.45886322,32277.0,32246.0,4.5062]
[1610394999607,0.67977034,32276.0,32246.0,4.5062]
[1610394999805,0.13632608,32247.0,32246.0,4.5062]
[1610395000408,0.13632608,32247.0,32231.0,0.13632608]
[1610395001712,4.6341,32259.0,32236.0,0.13632608]
[1610395001908,1.0,32268.0,32236.0,0.24525608]
[1610395002110,1.0,32268.0,32237.0,4.6832]
[1610395003109,1.0,32268.0,32236.0,0.24525608]
[1610395003314,0.2835,32271.0,32236.0,0.10893]
[1610395003315,4.5638,32266.0,32236.0,0.10893]
[1610395003913,4.5638,32266.0,32243.0,0.13632608]
[1610395004114,4.5638,32266.0,32243.0,0.24187608]
[1610395005712,0.0927,32265.0,32243.0,0.24187608]
[1610395005916,0.13632608,32244.0,32243.0,0.10555]
[1610395006131,4.01912608,32244.0,32243.0,0.10555]
[1610395006712,3.8828,32244.0,32236.0,0.10893]
[1610395007111,3.8828,32244.0,32219.0,4.883]
[1610395007914,0.13632608,32220.0,32219.0,4.883]
[1610395008111,0.13632608,32220.0,32214.0,0.13632608]
[1610395008112,1.0,32252.0,32190.0,0.2754]
[1610395008314,3.8063,32235.0,32205.0,4.5984]
[1610395008512,3.54737918,32235.0,32205.0,4.5984]
[1610395009115,0.0942,32234.0,32206.0,0.0932]
[1610395009312,3.54737918,32235.0,32205.0,4.5984]
[1610395009512,3.20559273,32235.0,32205.0,4.67814]
[1610395009912,0.13632608,32212.0,32209.0,0.13632608]
[1610395010312,0.04635838,32220.0,32209.0,0.13632608]
[1610395010512,3.39189273,32235.0,32209.0,0.13632608]
[1610395010513,3.20559273,32235.0,32209.0,0.13632608]
[1610395011813,3.20559273,32235.0,32205.0,4.67814]
[1610395011814,0.13632608,32218.0,32214.0,0.13632608]
[1610395012415,0.2754,32249.0,32214.0,0.13632608]
[1610395012617,0.2754,32249.0,32214.0,0.21536608]
[1610395013217,0.094,32248.0,32214.0,0.21536608]
[1610395013818,0.094,32248.0,32243.0,0.35706517]
[1610395014020,0.13632608,32244.0,32243.0,0.35706517]
[1610395014218,0.22842608,32244.0,32243.0,0.35706517]
[1610395014617,0.22842608,32244.0,32243.0,0.22986517]
[1610395014819,0.13632608,32244.0,32243.0,0.16716517]
[1610395015019,0.13632608,32244.0,32243.0,0.13926517]
[1610395017519,3.9017,32249.0,32243.0,0.13926517]
[1610395017920,0.0937,32255.0,32243.0,0.13926517]
[1610395018120,0.13632608,32244.0,32243.0,0.13926517]
[1610395018321,0.55187695,32258.0,32243.0,4.03586517]
[1610395018520,0.55187695,32258.0,32243.0,4.11364517]
[1610395018720,1.0,32261.0,32244.0,0.02]
[1610395018920,1.0,32261.0,32255.0,5.1346]
[1610395019121,1.0,32261.0,32255.0,5.2214]
[1610395019323,0.55174721,32274.0,32255.0,0.0868]
[1610395019521,0.55190551,32280.0,32255.0,0.0868]
[1610395019922,0.55187991,32281.0,32255.0,0.7249]
[1610395020326,0.55188135,32282.0,32255.0,0.7249]
[1610395020524,0.55188135,32282.0,32262.0,0.13632608]
[1610395020727,0.55188135,32282.0,32262.0,0.24149608]
[1610395021527,0.55231905,32283.0,32262.0,0.24149608]
[1610395021927,0.55231266,32284.0,32262.0,0.24149608]
[1610395022429,0.55267179,32285.0,32262.0,0.24149608]
[1610395022629,0.55267179,32285.0,32271.0,0.13632608]
[1610395023031,0.55267179,32285.0,32271.0,0.24274608]
[1610395023232,0.5526334,32286.0,32271.0,0.24274608]
[1610395024032,0.55304336,32287.0,32271.0,0.24274608]
[1610395024232,0.55304336,32287.0,32272.0,4.599]
[1610395024433,0.55345258,32288.0,32272.0,4.599]
[1610395024633,0.55345258,32288.0,32280.0,0.13632608]
[1610395024834,0.92229802,32295.0,32280.0,0.13632608]
[1610395024835,0.55340608,32289.0,32280.0,0.09141]
[1610395025235,0.55339295,32291.0,32280.0,0.09141]
[1610395026435,0.55437584,32290.0,32280.0,0.09141]
[1610395026634,0.55437584,32290.0,32285.0,0.13632608]
[1610395026837,0.55437656,32291.0,32280.0,0.09141]
[1610395027035,0.0924,32290.0,32280.0,0.09141]
[1610395027236,0.0924,32290.0,32262.0,0.10517]
[1610395027435,0.55500438,32284.0,32218.0,0.2733]
[1610395027635,3.8616,32272.0,32237.0,3.8608]
[1610395028236,4.41671554,32272.0,32237.0,3.8608]
[1610395028637,0.55556712,32271.0,32250.0,0.13632608]
[1610395028837,0.55556712,32271.0,32237.0,3.8608]
[1610395029037,0.55564361,32268.0,32218.0,0.2733]
[1610395029237,3.7805,32266.0,32230.0,3.6078]
[1610395029438,0.55602436,32264.0,32230.0,3.6078]
[1610395029838,0.55611715,32263.0,32230.0,3.6078]
[1610395030240,0.55613146,32260.0,32230.0,3.6078]
[1610395030642,0.13632608,32245.0,32241.0,0.13632608]
[1610395035342,0.13632608,32245.0,32230.0,3.6078]
[1610395036243,0.13632608,32245.0,32218.0,0.2733]
[1610395036644,0.13632608,32245.0,32241.0,0.13632608]
[1610395037146,0.55731505,32252.0,32228.0,4.5014]
[1610395037351,0.55731505,32252.0,32239.0,0.08405]
[1610395037551,0.55753094,32250.0,32239.0,0.08405]
[1610395037950,0.64953083,32251.0,32241.0,4.9415]
[1610395038352,0.092,32251.0,32241.0,4.9415]
[1610395038650,0.092,32251.0,32250.0,0.13632608]
[1610395040955,0.092,32251.0,32248.0,4.65703]
[1610395041154,0.092,32251.0,32248.0,0.08973]
[1610395041758,0.092,32251.0,32239.0,0.08405]
[1610395042757,0.13632608,32245.0,32239.0,0.08405]
[1610395042955,0.092,32251.0,32239.0,0.08405]
[1610395043855,0.45351951,32250.0,32239.0,0.08405]
[1610395044056,0.55796963,32247.0,32239.0,0.08405]
[1610395044358,0.55797872,32248.0,32239.0,0.08405]
[1610395044755,0.80603884,32249.0,32247.0,0.13632608]
[1610395044957,0.80603884,32249.0,32239.0,0.08405]
[1610395045159,0.5581337,32248.0,32239.0,0.08405]
[1610395045557,0.55836021,32245.0,32227.0,5.0656]
[1610395045957,1.22838271,32245.0,32227.0,5.0656]
[1610395046360,1.22838271,32245.0,32244.0,0.01810987]
[1610395046361,2.047631,32245.0,32244.0,0.01810987]
[1610395046759,2.97859486,32245.0,32244.0,0.00050987]
[1610395046958,6.78762094,32245.0,32244.0,0.00050987]
[1610395047159,3.11492094,32245.0,32244.0,0.00050987]
[1610395047359,4.24894474,32245.0,32244.0,0.00050987]
[1610395047862,2.43663223,32245.0,32244.0,0.00050987]
[1610395048360,3.36777194,32245.0,32244.0,0.00050987]
[1610395048761,3.36777194,32245.0,32229.0,0.13632608]
[1610395049063,2.87500875,32244.0,32229.0,0.13632608]
[1610395049463,3.55544207,32244.0,32228.0,5.1534]
[1610395049963,2.42139125,32244.0,32228.0,5.1534]
[1610395050264,3.91902074,32244.0,32228.0,5.1534]
[1610395050563,3.91902074,32244.0,32243.0,0.04526517]
[1610395050765,3.91902074,32244.0,32228.0,5.1534]
[1610395050965,0.13632608,32229.0,32228.0,5.1534]
[1610395051165,0.13632608,32229.0,32223.0,0.13632608]
[1610395051366,0.13632608,32229.0,32189.0,0.296]
[1610395051568,3.8098,32216.0,32177.0,2.13813575]
[1610395051767,1.12513815,32228.0,32174.0,2.14084993]
[1610395051968,4.5826,32195.0,32174.0,2.23407993]
[1610395052169,1.12513815,32228.0,32174.0,0.09323]
[1610395052170,0.0928,32216.0,32174.0,0.09323]
[1610395052367,5.1772,32183.0,32174.0,0.09323]
[1610395052568,0.67145566,32214.0,32174.0,0.09323]
[1610395052768,4.9707,32205.0,32174.0,0.09323]
[1610395052968,4.9707,32205.0,32184.0,0.13632608]
[1610395053169,4.9707,32205.0,32184.0,0.11136]
[1610395053770,0.67136995,32195.0,32184.0,0.11136]
[1610395054171,0.67136995,32195.0,32174.0,0.09323]
[1610395054770,0.67069252,32196.0,32174.0,0.09323]
[1610395054971,0.13632608,32184.0,32175.0,0.13632608]
[1610395055572,0.66988683,32198.0,32175.0,0.13632608]
[1610395056373,0.66988138,32200.0,32175.0,0.13632608]
[1610395056774,0.66922615,32201.0,32174.0,0.09323]
[1610395056972,0.66922615,32201.0,32174.0,4.19037]
[1610395057173,0.66922615,32201.0,32200.0,0.13632608]
[1610395057572,0.66857951,32204.0,32200.0,0.13443363]
[1610395058174,0.66852756,32206.0,32200.0,0.13443363]
[1610395058572,0.81704799,32208.0,32193.0,3.9006]
[1610395058573,0.66798528,32208.0,32193.0,3.9006]
[1610395058973,0.66790369,32209.0,32193.0,3.9006]
[1610395059173,0.66790369,32209.0,32204.0,0.13632608]
[1610395059376,0.66784453,32214.0,32204.0,0.13632608]
[1610395059773,0.66747573,32217.0,32204.0,0.13632608]
[1610395060078,0.6674615,32218.0,32199.0,0.10132]
[1610395060474,0.66725879,32221.0,32199.0,0.10132]
[1610395060874,0.66729665,32219.0,32199.0,0.10132]
[1610395061276,0.13632608,32200.0,32199.0,0.10132]
[1610395061880,0.66731444,32218.0,32199.0,0.10132]
[1610395062077,0.66708416,32216.0,32199.0,0.10132]
[1610395062278,0.66708416,32216.0,32193.0,3.9006]
[1610395062478,0.66686486,32215.0,32193.0,3.9006]
[1610395062877,0.66686961,32214.0,32193.0,3.9006]
[1610395063079,0.66686961,32214.0,32191.0,0.09121]
[1610395063279,0.66686961,32214.0,32190.0,0.25]
[1610395063280,0.13632608,32192.0,32190.0,0.25]
[1610395064680,3.6724,32197.0,32190.0,0.25]
[1610395065279,0.13632608,32191.0,32190.0,0.25]
[1610395066881,4.41492608,32191.0,32190.0,0.25]
[1610395067282,4.2786,32191.0,32190.0,0.25]
[1610395067883,4.41492608,32191.0,32190.0,0.25]
[1610395068084,4.2786,32191.0,32190.0,0.2079]
[1610395068484,4.2786,32191.0,32190.0,0.20600662]
[1610395068684,5.39739217,32191.0,32190.0,0.11133222]
[1610395068884,1.21239217,32191.0,32190.0,0.11133222]
[1610395069085,1.11879217,32191.0,32190.0,0.11133222]
[1610395069287,1.11879217,32191.0,32173.0,3.7227]
[1610395069288,2.61246853,32191.0,32173.0,3.7227]
[1610395069492,0.66435507,32191.0,32173.0,3.7227]
[1610395069887,0.13632608,32174.0,32173.0,3.7227]
[1610395071488,0.66240678,32199.0,32173.0,3.7227]
[1610395071686,0.66240678,32199.0,32173.0,3.82036]
[1610395071887,4.40656096,32200.0,32179.0,0.13632608]
[1610395072087,4.40656096,32200.0,32173.0,3.82036]